bitfinex/quotes_BTCUSD_20250421
["timestamp","ask_amount","ask_price","bid_price","bid_amount"]
[1745249296629,0.20275692,88176.0,88175.0,0.53834625]
[1745249296854,0.20275692,88176.0,88175.0,0.78834625]
[1745249298158,0.20275692,88176.0,88175.0,0.78734625]
[1745249298475,0.20275692,88176.0,88175.0,0.89498625]
[1745249301555,0.54275692,88176.0,88175.0,0.78734625]
[1745249302970,0.54275692,88176.0,88175.0,0.56052459]
[1745249303187,0.75721247,88176.0,88175.0,0.56052459]
[1745249303513,0.67105371,88176.0,88175.0,0.56052459]
[1745249303708,0.67205371,88176.0,88175.0,0.56052459]
[1745249303910,0.64864575,88176.0,88175.0,0.25]
[1745249307420,0.6341049,88176.0,88175.0,0.47682166]
[1745249307761,0.64864575,88176.0,88175.0,0.47682166]
[1745249309346,0.52034896,88176.0,88175.0,0.47782166]
[1745249310944,0.51934896,88176.0,88175.0,0.47782166]
[1745249312006,0.51933625,88176.0,88175.0,0.47782166]
[1745249312569,0.51933625,88176.0,88175.0,0.251]
[1745249316668,0.64763304,88176.0,88175.0,0.251]
[1745249317023,0.69633304,88176.0,88175.0,0.251]
[1745249317880,0.64763304,88176.0,88175.0,0.251]
[1745249318060,0.89763304,88176.0,88175.0,0.251]
[1745249318396,0.98974941,88176.0,88175.0,0.251]
[1745249318615,0.89763304,88176.0,88175.0,0.251]
[1745249319200,0.89963304,88176.0,88175.0,0.251]
[1745249319835,0.90163304,88176.0,88175.0,0.251]
[1745249320178,0.90463304,88176.0,88175.0,0.251]
[1745249320567,0.90163304,88176.0,88175.0,0.251]
[1745249320769,0.9947408,88176.0,88175.0,0.251]
[1745249320971,0.9977408,88176.0,88175.0,0.251]
[1745249322080,0.9977408,88176.0,88175.0,0.25]
[1745249324522,0.9977408,88176.0,88175.0,0.24433615]
[1745249325552,0.90463304,88176.0,88175.0,0.24433615]
[1745249325993,0.89009219,88176.0,88175.0,0.24433615]
[1745249326213,0.89009219,88176.0,88175.0,0.24533615]
[1745249326414,0.90463304,88176.0,88175.0,0.24533615]
[1745249331891,0.95103304,88176.0,88175.0,0.24533615]
[1745249332098,1.0490808,88176.0,88175.0,0.24533615]
[1745249333479,0.95103304,88176.0,88175.0,0.24533615]
[1745249334163,0.70103304,88176.0,88175.0,0.24533615]
[1745249334530,0.90466644,88176.0,88175.0,0.24533615]
[1745249337320,0.90466644,88176.0,88175.0,0.00976632]
[1745249337572,0.35454085,88175.0,88170.0,0.00045418]
[1745249337792,0.35454085,88173.0,88170.0,0.00045418]
[1745249337997,0.60454085,88171.0,88170.0,0.00045418]
[1745249338201,0.62829679,88171.0,88170.0,0.00045418]
[1745249338435,0.89948908,88171.0,88170.0,0.00045418]
[1745249338667,0.97004225,88171.0,88170.0,0.00045418]
[1745249338863,0.98062757,88171.0,88170.0,0.00045418]
[1745249339327,0.9100744,88171.0,88170.0,0.00045418]
[1745249339500,0.9120744,88171.0,88170.0,0.00045418]
[1745249339930,0.9140744,88171.0,88170.0,0.00045418]
[1745249340996,0.6640744,88171.0,88170.0,0.00045418]
[1745249341205,0.8140744,88171.0,88170.0,0.00045418]
[1745249341443,0.34777761,88171.0,88170.0,0.2272887]
[1745249341638,0.19777761,88171.0,88170.0,0.59251405]
[1745249341983,0.34577761,88171.0,88170.0,0.53881329]
[1745249342187,0.34477761,88171.0,88170.0,0.53881329]
[1745249342507,0.34377761,88171.0,88170.0,0.53881329]
[1745249343331,0.34177761,88171.0,88170.0,0.53881329]
[1745249346856,0.30775437,88171.0,88170.0,0.53881329]
[1745249347279,0.27373113,88171.0,88170.0,0.53881329]
[1745249347507,0.12373113,88171.0,88170.0,0.53981329]
[1745249349752,0.08970789,88171.0,88170.0,0.53981329]
[1745249350225,0.05568465,88171.0,88170.0,0.53981329]
[1745249352841,0.19166141,88171.0,88170.0,0.53881329]
[1745249353236,0.19166141,88171.0,88170.0,0.51354415]
[1745249353384,0.19166141,88171.0,88170.0,0.6272962]
[1745249353990,0.19166141,88171.0,88170.0,0.51354415]
[1745249355172,0.19166141,88171.0,88170.0,0.51454415]
[1745249355407,0.19166141,88171.0,88170.0,0.56024415]
[1745249355660,0.15,88190.0,88189.0,0.22778565]
[1745249355881,0.03,88190.0,88189.0,0.58401024]
[1745249356096,0.03848906,88190.0,88189.0,0.73843766]
[1745249356326,0.04906766,88190.0,88189.0,0.73843766]
[1745249357469,0.0405786,88190.0,88189.0,0.73843766]
[1745249357721,0.0405786,88190.0,88189.0,0.63241024]
[1745249358350,0.0405786,88190.0,88189.0,0.63341024]
[1745249359128,0.03,88190.0,88189.0,0.63341024]
[1745249359352,0.03,88190.0,88189.0,0.63441024]
[1745249363862,0.03,88190.0,88189.0,0.32388565]
[1745249366315,0.03,88190.0,88189.0,0.27548565]
[1745249367947,0.05112806,88190.0,88189.0,0.27548565]
[1745249368550,0.05112806,88190.0,88189.0,0.38924159]
[1745249368958,0.0004227,88205.0,88204.0,0.22774708]
[1745249369178,0.1404227,88205.0,88204.0,0.38010708]
[1745249370305,0.14146812,88205.0,88204.0,0.38010708]
[1745249370870,0.15203099,88205.0,88204.0,0.38010708]
[1745249371070,0.15303099,88205.0,88204.0,0.38010708]
[1745249371610,0.15303099,88205.0,88204.0,0.44306031]
[1745249371815,0.16164066,88205.0,88204.0,0.44306031]
[1745249372015,0.16164066,88205.0,88204.0,0.38010708]
[1745249372214,0.15107779,88205.0,88204.0,0.38010708]
[1745249372415,0.14246812,88205.0,88204.0,0.38010708]
[1745249372594,0.14246812,88205.0,88204.0,0.42900708]
[1745249372941,0.152,88209.0,88207.0,0.22673937]
[1745249373188,0.08130095,88208.0,88207.0,0.22773937]
[1745249373971,0.08330095,88208.0,88207.0,0.22773937]
[1745249374320,0.0909658,88208.0,88207.0,0.22773937]
[1745249374521,0.0899658,88208.0,88207.0,0.22773937]
[1745249374712,0.0909658,88208.0,88207.0,0.22773937]
[1745249378643,0.10152379,88208.0,88207.0,0.22773937]
[1745249380078,0.09285894,88208.0,88207.0,0.33742028]
[1745249380641,0.09285894,88208.0,88207.0,0.001]
[1745249381023,0.11398112,88208.0,88207.0,0.001]
[1745249382002,0.11398112,88208.0,88207.0,0.1082]
[1745249383409,0.12235199,88208.0,88207.0,0.1082]
[1745249386880,0.38710793,88208.0,88207.0,0.1072]
[1745249387928,0.38610793,88208.0,88207.0,0.1072]
[1745249388306,0.27235199,88208.0,88207.0,0.1072]
[1745249388463,0.27335199,88208.0,88207.0,0.1072]
[1745249388904,0.27235199,88208.0,88207.0,0.1072]
[1745249389103,0.27335199,88208.0,88207.0,0.1072]
[1745249389263,0.27435199,88208.0,88207.0,0.1072]
[1745249390363,0.14,88208.0,88207.0,0.1072]
[1745249390566,0.40375594,88208.0,88207.0,0.1072]
[1745249391104,0.41209464,88208.0,88207.0,0.1072]
[1745249391870,0.41209464,88208.0,88198.0,0.001]
[1745249392994,0.41209464,88208.0,88198.0,0.002]
[1745249393556,0.41209464,88208.0,88199.0,0.01092]
[1745249394081,0.41209464,88208.0,88198.0,0.1072]
[1745249394310,0.41209464,88208.0,88187.0,0.25023814]
[1745249394506,0.41209464,88208.0,88188.0,0.1072]
[1745249395809,0.41209464,88208.0,88188.0,0.1082]
[1745249396209,0.41209464,88208.0,88188.0,0.1092]
[1745249396590,0.41209464,88208.0,88189.0,0.04045381]
[1745249397196,0.41209464,88208.0,88188.0,0.1092]
[1745249397859,0.41209464,88208.0,88188.0,0.1082]
[1745249398065,0.41209464,88208.0,88189.0,0.001]
[1745249398516,0.41209464,88208.0,88188.0,0.1082]
[1745249398859,0.41209464,88208.0,88188.0,0.1092]
[1745249399064,0.41209464,88208.0,88188.0,0.12363]
[1745249399407,0.41209464,88208.0,88189.0,0.001]
[1745249399613,0.41209464,88208.0,88188.0,0.12363]
[1745249400011,0.26209464,88208.0,88188.0,0.12463]
[1745249400229,0.1483387,88208.0,88188.0,0.12363]
[1745249400436,0.1483387,88208.0,88191.0,0.0491]
[1745249400636,0.1483387,88208.0,88193.0,0.0491]
[1745249400802,0.1483387,88208.0,88207.0,0.01133696]
[1745249401001,0.1483387,88208.0,88207.0,0.28717376]
[1745249401234,0.1483387,88208.0,88207.0,0.34527376]
[1745249402214,0.16950826,88208.0,88207.0,0.34527376]
[1745249402415,0.18009358,88208.0,88207.0,0.34527376]
[1745249403577,0.18009358,88208.0,88207.0,0.16475711]
[1745249403751,0.18009358,88208.0,88207.0,0.05755711]
[1745249406509,0.18009358,88208.0,88207.0,0.10979576]
[1745249407105,0.18009358,88208.0,88207.0,0.05755711]
[1745249407308,0.18009358,88208.0,88207.0,0.10425711]
[1745249407932,0.17175488,88208.0,88207.0,0.14925711]
[1745249408540,0.16116956,88208.0,88207.0,0.14925711]
[1745249408940,0.16116956,88208.0,88207.0,0.16256712]
[1745249409089,0.16116956,88208.0,88207.0,0.22530677]
[1745249409298,0.16116956,88208.0,88207.0,0.34006271]
[1745249409481,0.14,88208.0,88207.0,0.3267527]
[1745249409690,0.14,88208.0,88207.0,0.26401305]
[1745249410514,0.14,88208.0,88207.0,0.27840473]
[1745249411462,0.14,88208.0,88207.0,0.26501305]
[1745249412128,0.14,88208.0,88207.0,0.27830833]
[1745249412327,0.14,88208.0,88207.0,0.26501305]
[1745249413173,0.14,88208.0,88207.0,0.3379973]
[1745249413389,0.14,88208.0,88207.0,0.26501305]
[1745249413751,0.14,88208.0,88207.0,0.27821503]
[1745249414787,0.00831521,88216.0,88215.0,0.22671881]
[1745249414965,0.0004227,88232.0,88231.0,0.22667769]
[1745249415155,0.17055886,88232.0,88231.0,0.22667769]
[1745249415361,0.17055886,88232.0,88231.0,0.29581539]
[1745249415587,0.19171188,88232.0,88231.0,0.22667769]
[1745249415788,0.20228839,88232.0,88231.0,0.22667769]
[1745249416748,0.21186528,88232.0,88231.0,0.22667769]
[1745249417304,0.21286528,88232.0,88231.0,0.22667769]
[1745249417485,0.20428839,88232.0,88231.0,0.34387146]
[1745249417906,0.20428839,88232.0,88231.0,0.27337769]
[1745249418756,0.20328839,88232.0,88231.0,0.27337769]
[1745249419099,0.20228839,88232.0,88231.0,0.27337769]
[1745249419704,0.21093675,88232.0,88231.0,0.27437769]
[1745249420109,0.21093675,88232.0,88231.0,0.27537769]
[1745249420744,0.20036024,88232.0,88231.0,0.27437769]
[1745249420927,0.20036024,88232.0,88231.0,0.22767769]
[1745249421154,0.20036024,88232.0,88231.0,0.07061685]
[1745249421782,0.20036024,88232.0,88231.0,0.14795083]
[1745249421990,0.20036024,88232.0,88231.0,0.06961685]
[1745249422206,0.20036024,88232.0,88231.0,0.07061685]
[1745249422411,0.19171188,88232.0,88231.0,0.06961685]
[1745249422543,0.19171188,88232.0,88231.0,0.06861685]
[1745249422747,0.19171188,88232.0,88231.0,0.06961685]
[1745249423133,0.20227085,88232.0,88231.0,0.06961685]
[1745249424190,0.21070962,88232.0,88231.0,0.06961685]
[1745249424391,0.20227085,88232.0,88231.0,0.06961685]
[1745249424839,0.20227085,88232.0,88231.0,0.11871685]
[1745249425090,0.18111783,88232.0,88231.0,0.11871685]
[1745249425542,0.17055886,88232.0,88231.0,0.11871685]
[1745249426379,0.0004227,88240.0,88238.0,0.22665971]
[1745249426579,0.07311631,88239.0,88238.0,0.30879669]
[1745249426830,0.08166878,88239.0,88238.0,0.22665971]
[1745249427596,0.09222694,88239.0,88238.0,0.22665971]
[1745249428197,0.09222694,88239.0,88238.0,0.33365971]
[1745249429618,0.08152428,88239.0,88238.0,0.44741565]
[1745249429811,1e-08,88269.0,88255.0,0.22661605]
[1745249430032,1e-08,88269.0,88268.0,0.22658268]
[1745249430033,0.17000001,88269.0,88268.0,0.22658268]
[1745249430298,0.17013617,88269.0,88268.0,0.33358268]
[1745249430512,0.17875457,88269.0,88268.0,0.33358268]
[1745249430655,0.17875457,88269.0,88268.0,0.41192418]
[1745249430844,0.17875457,88269.0,88268.0,0.33358268]
[1745249432002,0.17875457,88269.0,88268.0,0.33458268]
[1745249432508,0.17875457,88269.0,88268.0,0.33358268]
[1745249432707,0.17875457,88269.0,88268.0,0.33458268]
[1745249433713,0.17013617,88269.0,88268.0,0.38418268]
[1745249434582,0.17013617,88269.0,88268.0,0.33458268]
[1745249434961,0.17013617,88269.0,88268.0,0.22758268]
[1745249435564,0.17861881,88269.0,88268.0,0.22758268]
[1745249435771,0.63337475,88269.0,88268.0,0.001]
[1745249435933,0.6479156,88269.0,88268.0,0.001]
[1745249436158,0.51961881,88269.0,88268.0,0.001]
[1745249437490,0.52061881,88269.0,88268.0,0.001]
[1745249437857,0.63437475,88269.0,88268.0,0.001]
[1745249438066,0.34,88268.0,88265.0,0.01132951]
[1745249438272,0.48,88268.0,88265.0,0.01132951]
[1745249439953,0.481,88268.0,88265.0,0.01132951]
[1745249440154,0.482,88268.0,88265.0,0.01132951]
[1745249441523,0.482,88268.0,88267.0,0.22658477]
[1745249441747,0.48,88268.0,88267.0,0.22658477]
[1745249442122,0.481,88268.0,88267.0,0.22658477]
[1745249442342,0.51264425,88268.0,88267.0,0.22658477]
[1745249442798,0.51364425,88268.0,88267.0,0.22658477]
[1745249443107,0.51264425,88268.0,88267.0,0.22658477]
[1745249443438,0.51364425,88268.0,88267.0,0.22658477]
[1745249446804,0.5195569,88268.0,88267.0,0.22658477]
[1745249447890,0.5185569,88268.0,88267.0,0.22658477]
[1745249448326,0.5195569,88268.0,88267.0,0.22658477]
[1745249448721,0.5185569,88268.0,88267.0,0.22658477]
[1745249448973,0.5195569,88268.0,88267.0,0.22658477]
[1745249449531,0.64785369,88268.0,88267.0,0.22658477]
[1745249449945,0.63331284,88268.0,88267.0,0.22658477]
[1745249452820,0.5195569,88268.0,88267.0,0.22658477]
[1745249453380,0.5195569,88268.0,88266.0,0.23791428]
[1745249454012,0.02109601,88267.0,88266.0,0.23791428]
[1745249454337,0.54164425,88267.0,88266.0,0.23791428]
[1745249455369,0.54264425,88267.0,88266.0,0.23791428]
[1745249455553,0.54364425,88267.0,88266.0,0.23791428]
[1745249456225,0.54364425,88267.0,88266.0,0.32566777]
[1745249456447,0.20364425,88267.0,88266.0,0.32566777]
[1745249456918,1e-08,88269.0,88268.0,0.22658268]
[1745249457379,0.17,88269.0,88268.0,0.22658268]
[1745249458737,0.17,88269.0,88268.0,0.27218268]
[1745249459150,0.17,88269.0,88268.0,0.27318268]
[1745249461085,0.17,88269.0,88268.0,0.27518268]
[1745249461621,0.17,88269.0,88268.0,0.22958268]
[1745249462529,0.17,88269.0,88268.0,0.23390268]
[1745249462764,0.17,88269.0,88268.0,0.22958268]
[1745249462991,1e-08,88269.0,88268.0,0.32418268]
[1745249463250,1e-08,88269.0,88268.0,0.32318268]
[1745249463488,1e-08,88269.0,88268.0,0.27418268]
[1745249463962,1e-08,88269.0,88268.0,0.27218268]
[1745249464436,1e-08,88269.0,88268.0,0.27318268]
[1745249464680,1e-08,88269.0,88268.0,0.22758268]
[1745249464928,0.01454085,88266.0,88263.0,0.01132977]
[1745249465162,0.01454085,88266.0,88246.0,0.15232]
[1745249465163,0.15,88261.0,88246.0,0.10672]
[1745249465399,0.11375594,88260.0,88246.0,0.10672]
[1745249465640,0.27375594,88260.0,88246.0,0.10672]
[1745249466080,0.27375594,88260.0,88243.0,0.10672]
[1745249466960,0.61375594,88260.0,88240.0,0.0456]
[1745249467189,0.61375594,88260.0,88243.0,0.10672]
[1745249467412,0.61575594,88260.0,88243.0,0.10672]
[1745249468089,0.61575594,88260.0,88234.0,0.049]
[1745249468090,0.163,88260.0,88258.0,0.0456]
[1745249468320,0.163,88260.0,88251.0,0.0456]
[1745249468550,0.45375594,88259.0,88245.0,0.15232]
[1745249468771,0.63491893,88259.0,88245.0,0.15232]
[1745249469057,0.01058157,88258.0,88245.0,0.15232]
[1745249469283,0.54174456,88258.0,88245.0,0.15232]
[1745249469486,0.20174456,88258.0,88245.0,0.15232]
[1745249470925,0.20274456,88258.0,88245.0,0.15232]
[1745249471492,0.20274456,88258.0,88257.0,0.23793609]
[1745249473026,0.20274456,88258.0,88257.0,0.3308491]
[1745249473238,0.20274456,88258.0,88257.0,0.23793609]
[1745249474260,0.3165005,88258.0,88257.0,0.23793609]
[1745249474642,0.3165005,88258.0,88225.0,1.13345755]
[1745249474861,0.3165005,88258.0,88230.0,0.0469448]
[1745249474862,0.15,88244.0,88230.0,0.0469448]
[1745249475068,0.01057818,88243.0,88230.0,0.0469448]
[1745249475296,0.02116299,88242.0,88223.0,0.10676]
[1745249475519,0.53116299,88242.0,88223.0,0.010676]
[1745249475716,0.53116299,88242.0,88223.0,0.005676]
[1745249475913,0.02116299,88241.0,88223.0,0.005676]
[1745249476139,0.01057818,88240.0,88223.0,0.005676]
[1745249476340,0.02116299,88239.0,88223.0,0.005676]
[1745249476548,0.17116299,88239.0,88236.0,0.001]
[1745249476775,0.02116299,88238.0,88224.0,0.0112436]
[1745249476982,0.17116299,88238.0,88224.0,0.0112436]
[1745249477183,0.02116299,88237.0,88224.0,0.0112436]
[1745249477384,0.17116299,88237.0,88224.0,0.0112436]
[1745249477803,0.03174117,88236.0,88223.0,0.00013616]
[1745249478095,0.20174117,88236.0,88223.0,0.00013616]
[1745249478244,0.02116299,88235.0,88224.0,0.001]
[1745249478446,0.18116299,88235.0,88224.0,0.0471]
[1745249478655,0.03174117,88234.0,88224.0,0.0471]
[1745249478851,0.02116299,88233.0,88224.0,0.0471]
[1745249479057,0.19116299,88233.0,88224.0,0.0471]
[1745249479258,0.02116299,88232.0,88224.0,0.0471]
[1745249479500,0.01057818,88231.0,88224.0,0.0461]
[1745249479712,0.18057818,88231.0,88224.0,0.0461]
[1745249479867,0.02116299,88230.0,88224.0,0.0471]
[1745249480069,0.19116299,88230.0,88224.0,0.0491]
[1745249480302,0.01057818,88229.0,88224.0,0.0501]
[1745249480533,0.19174117,88229.0,88224.0,0.0501]
[1745249480746,0.49,88225.0,88224.0,0.002]
[1745249480961,0.49,88225.0,88224.0,0.003]
[1745249480962,0.75375594,88225.0,88224.0,0.003]
[1745249481175,0.80265594,88225.0,88224.0,0.003]
[1745249481374,0.80265594,88225.0,88224.0,0.002]
[1745249481375,0.92404251,88225.0,88224.0,0.002]
[1745249481515,0.92404251,88225.0,88224.0,0.22669568]
[1745249481716,0.93462069,88225.0,88224.0,0.22669568]
[1745249481922,0.93462069,88225.0,88224.0,0.22769568]
[1745249482340,0.93462069,88225.0,88224.0,0.22669568]
[1745249482748,0.78749711,88225.0,88224.0,0.22769568]
[1745249483175,0.78549711,88225.0,88224.0,0.22769568]
[1745249483400,0.78849711,88225.0,88224.0,0.22769568]
[1745249484020,0.78749711,88225.0,88224.0,0.22669568]
[1745249484800,0.33174117,88225.0,88224.0,0.22669568]
[1745249485012,0.33474117,88225.0,88224.0,0.22669568]
[1745249487120,0.18474117,88225.0,88224.0,0.22669568]
[1745249487337,0.23474117,88225.0,88224.0,0.22669568]
[1745249489520,1e-08,88225.0,88224.0,0.22669568]
[1745249490136,0.00100001,88225.0,88224.0,0.22669568]
[1745249490360,1e-08,88225.0,88224.0,0.32059877]
[1745249490591,1e-08,88225.0,88224.0,0.22669568]
[1745249490808,1e-08,88225.0,88224.0,0.22769568]
[1745249491061,1e-08,88225.0,88224.0,0.22669568]
[1745249491297,0.00100001,88225.0,88224.0,0.22769568]
[1745249491724,1e-08,88225.0,88224.0,0.22769568]
[1745249492169,1e-08,88225.0,88224.0,0.22969568]
[1745249492600,1e-08,88225.0,88224.0,0.22769568]
[1745249493032,1e-08,88225.0,88224.0,0.22869568]
[1745249493651,1e-08,88225.0,88224.0,0.22969568]
[1745249493872,1e-08,88225.0,88224.0,0.001]
[1745249494086,0.11375595,88225.0,88224.0,0.001]
[1745249494300,0.11375595,88225.0,88224.0,0.002]
[1745249494506,0.11375595,88225.0,88224.0,0.001]
[1745249495191,0.11375595,88225.0,88224.0,0.002]
[1745249495399,0.14476154,88225.0,88224.0,0.002]
[1745249495612,0.11375595,88225.0,88224.0,0.001]
[1745249496027,0.11475595,88225.0,88224.0,0.001]
[1745249496452,0.11375595,88225.0,88224.0,0.001]
[1745249496665,0.15,88222.0,88221.0,0.0008448]
[1745249496888,0.26375594,88222.0,88221.0,0.00098096]
[1745249497094,0.43703254,88222.0,88221.0,0.00098096]
[1745249497888,0.41375594,88222.0,88221.0,0.00098096]
[1745249498300,0.41675594,88222.0,88221.0,0.00098096]
[1745249502242,0.44844565,88222.0,88221.0,0.00098096]
[1745249504471,0.44844565,88222.0,88220.0,0.23804039]
[1745249504675,0.11375594,88221.0,88220.0,0.23804039]
[1745249504877,0.28488242,88221.0,88220.0,0.23804039]
[1745249505363,0.29544565,88221.0,88220.0,0.23804039]
[1745249506821,0.29644565,88221.0,88220.0,0.23804039]
[1745249508024,0.44744565,88221.0,88220.0,0.23804039]
[1745249508291,0.29744565,88221.0,88220.0,0.23804039]
[1745249508502,0.44744565,88221.0,88220.0,0.23804039]
[1745249515323,0.18368971,88221.0,88220.0,0.27751885]
[1745249515587,0.18368971,88221.0,88220.0,0.32721885]
[1745249515823,0.15,88237.0,88234.0,0.24121084]
[1745249516084,0.03013601,88235.0,88234.0,0.28991084]
[1745249516576,0.20327559,88250.0,88247.0,0.01133182]
[1745249516790,0.23170417,88250.0,88249.0,0.28987231]
[1745249517208,0.17842858,88250.0,88249.0,0.28987231]
[1745249517409,0.17,88250.0,88249.0,0.28987231]
[1745249518022,0.171,88250.0,88249.0,0.28987231]
[1745249519074,0.1795062,88250.0,88249.0,0.28987231]
[1745249520378,0.1795062,88250.0,88249.0,0.24117231]
[1745249521397,0.3285062,88250.0,88249.0,0.22663146]
[1745249522023,0.44226214,88250.0,88249.0,0.22663146]
[1745249522222,0.48648835,88250.0,88249.0,0.22663146]
[1745249522890,0.44226214,88250.0,88249.0,0.22663146]
[1745249523793,0.3285062,88250.0,88249.0,0.24117231]
[1745249524193,0.1785062,88250.0,88249.0,0.24117231]
[1745249524860,0.1795062,88250.0,88249.0,0.24117231]
[1745249525466,0.1785062,88250.0,88249.0,0.24117231]
[1745249525603,0.1795062,88250.0,88249.0,0.24117231]
[1745249526603,0.1795062,88250.0,88249.0,0.22763146]
[1745249526806,0.1785062,88250.0,88249.0,0.22763146]
[1745249527572,0.46011276,88250.0,88249.0,0.22663146]
[1745249527772,0.44226214,88250.0,88249.0,0.22763146]
[1745249528105,0.80433109,88250.0,88249.0,0.001]
[1745249528304,0.80433109,88250.0,88238.0,0.01133298]
[1745249528503,0.34,88248.0,88238.0,0.01133298]
[1745249528749,0.34,88246.0,88238.0,0.01133298]
[1745249528953,0.5,88246.0,88238.0,0.01133298]
[1745249529149,0.34,88244.0,88238.0,0.01133298]
[1745249529372,0.15,88239.0,88238.0,0.01133298]
[1745249529579,0.15,88224.0,88220.0,0.001]
[1745249529816,0.11375594,88223.0,88220.0,0.00113601]
[1745249530028,0.34,88222.0,88220.0,0.00113601]
[1745249530240,0.45375594,88221.0,88220.0,0.00113601]
[1745249530465,0.62536126,88221.0,88220.0,0.00113601]
[1745249530696,0.70289739,88221.0,88220.0,0.00113601]
[1745249530943,0.63383157,88221.0,88220.0,0.00113601]
[1745249531361,1.00664672,88221.0,88220.0,0.00113601]
[1745249531787,0.77258172,88221.0,88220.0,0.00113601]
[1745249532002,1.02258172,88221.0,88220.0,0.00113601]
[1745249532227,0.89845572,88221.0,88220.0,0.00113601]
[1745249532434,0.98889269,88221.0,88220.0,0.00113601]
[1745249532811,0.90045572,88221.0,88220.0,0.00113601]
[1745249533017,0.89745572,88221.0,88220.0,0.00113601]
[1745249533225,0.89945572,88221.0,88220.0,0.00113601]
[1745249533395,0.90045572,88221.0,88220.0,0.00113601]
[1745249533580,0.89945572,88221.0,88220.0,0.00113601]
[1745249533950,0.90145572,88221.0,88220.0,0.00113601]
[1745249534151,0.31145572,88221.0,88220.0,0.00113601]
[1745249534306,0.30945572,88221.0,88220.0,0.00113601]
[1745249534507,0.19569978,88221.0,88220.0,0.00113601]
[1745249534751,0.18307563,88221.0,88220.0,0.00113601]
[1745249535135,0.18107563,88221.0,88220.0,0.00113601]
[1745249535549,0.18207563,88221.0,88220.0,0.00113601]
[1745249535743,0.18107563,88221.0,88220.0,0.00113601]
[1745249535993,0.18007563,88221.0,88220.0,0.00113601]
[1745249536369,0.18107563,88221.0,88220.0,0.00113601]
[1745249537093,0.18007563,88221.0,88220.0,0.00113601]
[1745249539534,0.18007563,88221.0,88220.0,0.01567686]
[1745249539918,0.22,88248.0,88247.0,0.22663659]
[1745249540039,0.14,88248.0,88247.0,0.24117744]
[1745249540235,0.14835645,88248.0,88247.0,0.28737744]
[1745249540439,0.16942896,88248.0,88247.0,0.33360608]
[1745249541145,0.16942896,88248.0,88247.0,0.28737744]
[1745249542436,0.13543425,88248.0,88247.0,0.28737744]
[1745249543143,0.13543425,88248.0,88247.0,0.28837744]
[1745249543331,0.10143954,88248.0,88247.0,0.28837744]
[1745249543803,0.10143954,88248.0,88247.0,0.24217744]
[1745249544633,0.09654311,88248.0,88247.0,0.24217744]
[1745249544941,0.08818666,88248.0,88247.0,0.33778785]
[1745249545134,0.152,88269.0,88256.0,0.01454085]
[1745249545329,0.1404226,88261.0,88260.0,0.24114406]
[1745249546278,0.002,88269.0,88268.0,0.24112353]
[1745249546484,0.10213614,88269.0,88268.0,0.29016032]
[1745249547754,0.1106197,88269.0,88268.0,0.24112353]
[1745249547954,0.1116197,88269.0,88268.0,0.22658268]
[1745249548342,0.1106197,88269.0,88268.0,0.22658268]
[1745249548536,0.1126197,88269.0,88268.0,0.22658268]
[1745249548872,0.1126197,88269.0,88268.0,0.24112353]
[1745249549085,0.1126197,88269.0,88268.0,0.33547897]
[1745249549518,0.1126197,88269.0,88268.0,0.24112353]
[1745249551004,0.1126197,88269.0,88268.0,0.24212353]
[1745249551237,0.1126197,88269.0,88268.0,0.33612353]
[1745249551454,0.05733614,88269.0,88268.0,0.45087947]
[1745249552344,0.05533614,88269.0,88268.0,0.45087947]
[1745249552584,0.4,88296.0,88293.0,0.01132592]
[1745249552804,0.29,88296.0,88295.0,0.24105424]
[1745249553028,0.29013611,88296.0,88295.0,0.24105424]
[1745249553439,0.30064454,88296.0,88295.0,0.24105424]
[1745249554673,0.30921538,88296.0,88295.0,0.24105424]
[1745249555105,0.31021538,88296.0,88295.0,0.24105424]
[1745249555515,0.30921538,88296.0,88295.0,0.33538087]
[1745249555712,0.30921538,88296.0,88295.0,0.24105424]
[1745249555923,0.31021538,88296.0,88295.0,0.24105424]
[1745249556999,0.31021538,88296.0,88295.0,0.22651339]
[1745249557556,0.33119837,88296.0,88295.0,0.22651339]
[1745249560480,0.44495431,88296.0,88295.0,0.22651339]
[1745249560885,0.34,88295.0,88290.0,0.01132631]
[1745249561089,0.34,88273.0,88241.0,0.0468]
[1745249561314,0.11375594,88272.0,88243.0,0.10648]
[1745249561527,0.02098299,88271.0,88243.0,0.10648]
[1745249561698,0.11375594,88270.0,88251.0,0.01454085]
[1745249561900,0.01050843,88269.0,88251.0,0.01454085]
[1745249562108,0.28524736,88269.0,88243.0,0.10648]
[1745249562306,0.15,88261.0,88243.0,0.10648]
[1745249562542,0.02098299,88260.0,88249.0,0.06898942]
[1745249562843,0.01050843,88259.0,88250.0,0.01454085]
[1745249563077,0.00665783,88258.0,88250.0,0.02289388]
[1745249563265,0.00665783,88258.0,88252.0,0.01454085]
[1745249563266,0.16665783,88258.0,88252.0,0.01454085]
[1745249563427,0.02098299,88257.0,88252.0,0.12829679]
[1745249563629,0.16098299,88257.0,88256.0,0.01454085]
[1745249563840,0.14,88257.0,88256.0,0.17499992]
[1745249564040,0.14,88257.0,88256.0,0.06124398]
[1745249564991,0.14,88257.0,88250.0,0.11696917]
[1745249565200,0.14,88257.0,88256.0,0.002]
[1745249565442,0.15052066,88257.0,88256.0,0.002]
[1745249566263,0.15052066,88257.0,88256.0,0.004]
[1745249566394,0.15052066,88257.0,88256.0,0.002]
[1745249566608,0.15052066,88257.0,88256.0,0.24315433]
[1745249567461,0.4142766,88257.0,88256.0,0.22861348]
[1745249567689,0.4142766,88257.0,88256.0,0.22661348]
[1745249568668,0.4142766,88257.0,88255.0,0.22661605]
[1745249568887,0.11375594,88256.0,88255.0,0.22661605]
[1745249569104,0.25375594,88256.0,88255.0,0.22661605]
[1745249569912,0.2642766,88256.0,88255.0,0.22661605]
[1745249570824,0.15052066,88256.0,88255.0,0.31842137]
[1745249571986,0.15052066,88256.0,88255.0,0.2411569]
[1745249572234,0.15052066,88256.0,88255.0,0.3363569]
[1745249572461,0.15052066,88256.0,88255.0,0.45011284]
[1745249572714,0.15,88289.0,88282.0,0.24108759]
[1745249572951,0.15,88289.0,88288.0,0.2410722]
[1745249573195,0.0004227,88305.0,88296.0,0.24105167]
[1745249573413,0.0504227,88297.0,88296.0,0.24105167]
[1745249573894,0.05893845,88297.0,88296.0,0.24105167]
[1745249574110,0.05939215,88297.0,88296.0,0.24105167]
[1745249574523,0.06039215,88297.0,88296.0,0.24105167]
[1745249575144,0.17514809,88297.0,88295.0,0.22651339]
[1745249575370,0.11375594,88296.0,88295.0,0.22651339]
[1745249575578,0.28375594,88296.0,88295.0,0.22651339]
[1745249575929,0.30485554,88296.0,88295.0,0.22651339]